fUST/lending_fUST_20250602
["ID","MTS","AMOUNT","RATE_DAILY","PERIOD"]
[363789915,1748872251738,-254.859768,0.00022,7]
[363789916,1748872251748,-350.36616789,0.00022,2]
[363789917,1748872251758,-99116.62687404,0.00022,7]
[363789918,1748872251772,-151.0,0.00022,7]
[363789919,1748872251782,-9556.76264393,0.00022,2]
[363789920,1748872251791,-151.0,0.00022,7]
[363789921,1748872251801,-151.0,0.00022,7]
[363789922,1748872251812,-151.0,0.00022,7]
[363789923,1748872251822,-151.0,0.00022,7]
[363789924,1748872251831,-151.0,0.00022,7]
[363789925,1748872251841,-151.0,0.00022,7]
[363789926,1748872251851,-852.929751,0.00022,7]
[363789927,1748872251861,-852.929751,0.00022,7]
[363789928,1748872251871,-151.0,0.00022,7]
[363789929,1748872251881,-151.0,0.00022,7]
[363789930,1748872251891,-151.0,0.00022,7]
[363789931,1748872251903,-151.0,0.00022,7]
[363789932,1748872251913,-151.0,0.00022,7]
[363789933,1748872251922,-240.295316,0.00022,7]
[363789934,1748872251932,-240.295316,0.00022,7]
[363789935,1748872251942,-240.295316,0.00022,7]
[363789936,1748872251951,-240.295316,0.00022,7]
[363789937,1748872251962,-151.0,0.00022,7]
[363789938,1748872251971,-247.651446,0.00022,7]
[363789939,1748872251981,-151.0,0.00022,7]
[363789940,1748872251990,-151.0,0.00022,7]
[363789941,1748872252001,-151.0,0.00022,7]
[363789942,1748872252011,-445.297022,0.00022,7]
[363789943,1748872252025,-445.297022,0.00022,7]
[363789944,1748872252038,-445.297022,0.00022,7]
[363789945,1748872252048,-445.297022,0.00022,7]
[363789946,1748872252058,-152.702403,0.00022,7]
[363789947,1748872252070,-151.0,0.00022,7]
[363789948,1748872252080,-151.0,0.00022,7]
[363789949,1748872252090,-151.0,0.00022,7]
[363789950,1748872252100,-151.0,0.00022,7]
[363789951,1748872252111,-151.0,0.00022,7]
[363789952,1748872252121,-383.707035,0.00022,7]
[363789953,1748872252130,-383.707035,0.00022,7]
[363789954,1748872252140,-260.454077,0.00022,7]
[363789955,1748872252151,-260.454077,0.00022,7]
[363789956,1748872252161,-152.264403,0.00022,7]
[363789957,1748872252171,-152.264403,0.00022,7]
[363789958,1748872252181,-260.454077,0.00022,7]
[363789959,1748872252190,-260.454077,0.00022,7]
[363789960,1748872252200,-152.264403,0.00022,7]
[363789961,1748872252210,-152.264403,0.00022,7]
[363789962,1748872252219,-263.034315,0.00022,7]
[363789963,1748872252229,-263.034315,0.00022,7]
[363789964,1748872252239,-263.034315,0.00022,7]
[363789965,1748872252249,-151.0,0.00022,7]
[363789966,1748872252258,-151.0,0.00022,7]
[363789967,1748872252268,-263.034315,0.00022,7]
[363789968,1748872252277,-263.034315,0.00022,7]
[363789969,1748872252287,-263.034315,0.00022,7]
[363789970,1748872252296,-151.0,0.00022,7]
[363789971,1748872252305,-151.0,0.00022,7]
[363789972,1748872252315,-842.5625,0.00022,3]
[363789973,1748872252324,-2000.0,0.00022,2]
[363789974,1748872252334,-12668.79298183,0.00022,3]
[363789975,1748872252344,-151.0,0.00022,7]
[363789976,1748872252354,-151.0,0.00022,7]
[363789977,1748872252363,-419.159235,0.00022,7]
[363789978,1748872252373,-419.159235,0.00022,7]
[363789979,1748872252382,-419.159235,0.00022,7]
[363789980,1748872252391,-419.159235,0.00022,7]
[363789981,1748872252400,-151.0,0.00022,7]
[363789982,1748872252410,-151.0,0.00022,7]
[363789983,1748872252419,-151.0,0.00022,7]
[363789984,1748872252428,-151.0,0.00022,7]
[363789985,1748872252448,-151.0,0.00022,7]
[363789986,1748872252459,-175.090555,0.00022,7]
[363789987,1748872252469,-306.757923,0.00022,7]
[363789988,1748872252480,-306.757923,0.00022,7]
[363789989,1748872252490,-306.757923,0.00022,7]
[363789990,1748872252499,-306.757923,0.00022,7]
[363789991,1748872252509,-638.0,0.00022,2]
[363789992,1748872252520,-151.0,0.00022,7]
[363789993,1748872252530,-151.0,0.00022,7]
[363789994,1748872252539,-151.0,0.0002201,7]
[363789995,1748872252549,-151.0,0.00022019,7]
[363789996,1748872252559,-152.264403,0.00022019,7]
[363789997,1748872252569,-152.264403,0.00022019,7]
[363789998,1748872252579,-419.159235,0.00022019,7]
[363789999,1748872252588,-419.159235,0.00022019,7]
[363790000,1748872252598,-600.0,0.00022019,2]
[363790001,1748872252608,-306.757923,0.00022019,7]
[363790002,1748872252618,-306.757923,0.00022019,7]
[363790003,1748872252629,-1058.41,0.00022047,2]
[363790004,1748872252639,-545.86,0.00022047,2]
[363790005,1748872252649,-510.15,0.00022047,2]
[363790006,1748872252659,-575.87,0.00022047,2]
[363790007,1748872252669,-1011.77,0.00022047,2]
[363790008,1748872252679,-656.08,0.00022049,2]
[363790009,1748872252689,-430.0,0.00022049,2]
[363790010,1748872252699,-691.05,0.00022049,2]
[363790011,1748872252709,-550.07,0.00022049,2]
[363790012,1748872252719,-1420.09,0.00022049,2]
[363790013,1748872252729,-845.14,0.00022049,2]
[363790014,1748872252740,-561.77688493,0.00022064,2]
[363790015,1748872252749,-1001.49859335,0.00022064,2]
[363790016,1748872252760,-1500.0,0.00022064,2]
[363790017,1748872252772,-1500.0,0.00022064,2]
[363790018,1748872252782,-1500.0,0.00022064,2]
[363790019,1748872252792,-508.513244,0.00022064,2]
[363790020,1748872252802,-1525.52033247,0.00022064,2]
[363790021,1748872252811,-170.0,0.00022086,3]
[363790022,1748872252821,-170.0,0.00022086,3]
[363790023,1748872252831,-153.0,0.00022086,3]
[363790024,1748872252840,-153.0,0.00022086,3]
[363790025,1748872252850,-170.0,0.00022086,3]
[363790026,1748872252860,-153.0,0.00022086,3]
[363790027,1748872252870,-170.0,0.00022086,3]
[363790028,1748872252880,-153.0,0.00022086,3]
[363790029,1748872252890,-170.0,0.00022086,3]
[363790030,1748872252899,-153.0,0.00022086,3]
[363790031,1748872252909,-175.59555078,0.00022086,3]
[363790032,1748872252919,-153.0,0.00022086,3]
[363790033,1748872252929,-153.0,0.00022086,3]
[363790034,1748872252939,-153.0,0.00022086,3]
[363790035,1748872252948,-153.0,0.00022086,3]
[363790036,1748872252958,-153.0,0.00022086,3]
[363790037,1748872252968,-153.0,0.00022086,3]
[363790038,1748872252978,-153.0,0.00022086,3]
[363790039,1748872252987,-153.0,0.00022086,3]
[363790040,1748872252997,-153.0,0.00022086,3]
[363790041,1748872253007,-153.0,0.00022086,3]
[363790042,1748872253017,-153.0,0.00022086,3]
[363790043,1748872253032,-153.0,0.00022086,3]
[363790044,1748872253042,-153.0,0.00022086,3]
[363790045,1748872253051,-153.0,0.00022086,3]
[363790046,1748872253062,-153.0,0.00022086,3]
[363790047,1748872253072,-153.0,0.00022086,3]
[363790048,1748872253081,-153.0,0.00022086,3]
[363790049,1748872253091,-153.0,0.00022086,3]
[363790050,1748872253101,-153.0,0.00022086,3]
[363790051,1748872253112,-153.0,0.00022086,3]
[363790052,1748872253121,-153.0,0.00022086,3]
[363790053,1748872253131,-153.0,0.00022086,3]
[363790054,1748872253142,-153.0,0.00022086,3]
[363790055,1748872253151,-153.0,0.00022086,3]
[363790056,1748872253161,-153.0,0.00022086,3]
[363790057,1748872253170,-153.0,0.00022086,3]
[363790058,1748872253181,-153.0,0.00022086,3]
[363790059,1748872253191,-153.0,0.00022086,3]
[363790060,1748872253201,-153.0,0.00022086,3]
[363790061,1748872253211,-153.0,0.00022086,3]
[363790062,1748872253220,-153.0,0.00022086,3]
[363790063,1748872253230,-153.0,0.00022086,3]
[363790064,1748872253239,-153.0,0.00022086,3]
[363790065,1748872253249,-153.0,0.00022086,3]
[363790066,1748872253259,-153.0,0.00022086,3]
[363790067,1748872253377,-153.0,0.00022086,3]
[363790068,1748872253388,-153.0,0.00022086,3]
[363790069,1748872253398,-153.0,0.00022086,3]
[363790070,1748872253408,-153.0,0.00022086,3]
[363790071,1748872253418,-153.0,0.00022086,3]
[363790072,1748872253428,-153.0,0.00022086,3]
[363790073,1748872253437,-153.0,0.00022086,3]
[363790074,1748872253446,-153.0,0.00022086,3]
[363790075,1748872253456,-153.0,0.00022086,3]
[363790076,1748872253465,-153.0,0.00022086,3]
[363790077,1748872253474,-153.0,0.00022086,3]
[363790078,1748872253488,-153.0,0.00022086,3]
[363790079,1748872253498,-153.0,0.00022086,3]
[363790080,1748872253507,-153.0,0.00022086,3]
[363790081,1748872253517,-153.0,0.00022086,3]
[363790082,1748872253528,-153.0,0.00022086,3]
[363790083,1748872253537,-153.0,0.00022086,3]
[363790084,1748872253547,-153.0,0.00022086,3]
[363790085,1748872253556,-271.52524449,0.00022086,3]
[363790086,1748872253566,-160.0,0.0002213,3]
[363790087,1748872253576,-5000.0,0.00022154,2]
[363790088,1748872253586,-240.295316,0.00022183,7]
[363790089,1748872253595,-240.295316,0.00022183,7]
[363790090,1748872253605,-445.297022,0.00022183,7]
[363790091,1748872253615,-445.297022,0.00022183,7]
[363790092,1748872253625,-260.454077,0.00022183,7]
[363790093,1748872253635,-260.454077,0.00022183,7]
[363790094,1748872253645,-151.0,0.00022183,7]
[363790095,1748872253654,-200.0,0.00022191,30]
[363790096,1748872253664,-508.78,0.00022191,5]
[363790097,1748872253674,-151.0,0.000222,7]
[363790098,1748872253684,-151.0,0.000222,7]
[363790099,1748872253694,-1814.36071417,0.0002221,6]
[363790100,1748872253704,-3954.07565856,0.00022223,2]
[363790101,1748872253715,-1243.229541,0.00022246,3]
[363790102,1748872253724,-158.5152029,0.00022274,2]
[363790103,1748872253734,-572.502888,0.00022274,2]
[363790104,1748872253743,-158.5152029,0.00022274,2]
[363790105,1748872253753,-306.0,0.00022274,2]
[363790106,1748872253762,-572.502888,0.00022274,2]
[363790107,1748872253773,-1400.0,0.00022321,2]
[363790108,1748872253784,-1058.41,0.00022321,2]
[363790109,1748872253794,-545.86,0.00022321,2]
[363790110,1748872253804,-510.15,0.00022321,2]
[363790111,1748872253814,-575.87,0.00022321,2]
[363790112,1748872253824,-1011.77,0.00022321,2]
[363790113,1748872253834,-656.08,0.00022323,2]
[363790114,1748872253843,-430.0,0.00022323,2]
[363790115,1748872253853,-691.05,0.00022323,2]
[363790116,1748872253864,-550.07,0.00022323,2]
[363790117,1748872253874,-1420.09,0.00022323,2]
[363790118,1748872253884,-845.14,0.00022323,2]
[363790119,1748872253899,-1500.0,0.00022387,2]
[363790120,1748872253909,-1500.0,0.00022387,2]
[363790121,1748872253919,-1800.0,0.00022387,2]
[363790122,1748872253929,-1500.0,0.00022387,2]
[363790123,1748872253939,-1500.0,0.00022387,2]
[363790124,1748872253949,-3954.07565849,0.00022401,2]
[363790125,1748872253959,-1814.36071417,0.00022452,7]
[363790126,1748872253968,-175.581,0.00022454,2]
[363790127,1748872253978,-200.0,0.00022465,30]
[363790128,1748872253988,-500.0,0.00022465,2]
[363790129,1748872253998,-2200.0,0.00022471,2]
[363790130,1748872254008,-2284.58,0.000225,2]
[363790131,1748872254018,-1000.0,0.00022521,2]
[363790132,1748872254033,-500.0,0.00022521,2]
[363790133,1748872254042,-785.71082714,0.00022521,2]
[363790134,1748872254052,-3954.07565849,0.00022578,2]
[363790135,1748872254063,-1058.41,0.00022595,2]
[363790136,1748872254074,-545.86,0.00022595,2]
[363790137,1748872254084,-510.15,0.00022595,2]
[363790138,1748872254095,-575.87,0.00022595,2]
[363790139,1748872254107,-1011.77,0.00022595,2]
[363790140,1748872254118,-656.08,0.00022597,2]
[363790141,1748872254128,-527.681607,0.00022597,2]
[363790142,1748872254138,-691.05,0.00022597,2]
[363790143,1748872254149,-550.07,0.00022597,2]
[363790144,1748872254159,-1420.09,0.00022597,2]
[363790145,1748872254169,-845.14,0.00022597,2]
[363790146,1748872254179,-2201.5,0.000226,7]
[363790147,1748872254190,-495.994528,0.00022603,2]
[363790148,1748872254201,-2000.0,0.00022612,2]
[363790149,1748872254211,-2000.0,0.00022612,2]
[363790150,1748872254220,-1340.67825308,0.00022612,2]
[363790151,1748872254231,-1814.36071417,0.00022693,7]
[363790152,1748872254240,-10740.54,0.000227,2]
[363790153,1748872254249,-187.146161,0.000227,2]
[363790154,1748872254259,-195.9627,0.000227,2]
[363790155,1748872254268,-195.9627,0.000227,2]
[363790156,1748872254281,-5000.0,0.00022702,2]
[363790157,1748872254291,-160.0,0.00022737,4]
[363790158,1748872254300,-151.0,0.00022739,7]
[363790159,1748872254310,-151.0,0.00022739,7]
[363790160,1748872254320,-151.0,0.00022739,7]
[363790161,1748872254330,-151.0,0.00022739,7]
[363790162,1748872254340,-852.929751,0.00022739,7]
[363790163,1748872254350,-203.57415183,0.00022739,30]
[363790164,1748872254359,-852.929751,0.00022739,7]
[363790165,1748872254368,-508.78,0.00022739,6]
[363790166,1748872254379,-206.0,0.0002274,2]
[363790167,1748872254388,-3954.07565849,0.00022756,2]
[363790168,1748872254398,-151.0,0.00022783,7]
[363790169,1748872254408,-151.0,0.00022783,7]
[363790170,1748872254418,-151.0,0.00022783,7]
[363790171,1748872254430,-151.0,0.00022783,7]
[363790172,1748872254440,-383.707035,0.00022783,7]
[363790173,1748872254450,-383.707035,0.00022783,7]
[363790174,1748872254459,-92695.8,0.000228,7]
[363790175,1748872254469,-151.0,0.000228,7]
[363790176,1748872254480,-193.001066,0.000228,7]
[363790177,1748872254489,-193.001066,0.000228,7]
[363790178,1748872254498,-151.0,0.000228,7]
[363790179,1748872254508,-151.0,0.000228,7]
[363790180,1748872254518,-151.0,0.000228,7]
[363790181,1748872254532,-239.023645,0.000228,7]
[363790182,1748872254542,-214.255138,0.000228,7]
[363790183,1748872254553,-214.255138,0.000228,7]
[363790184,1748872254563,-254.859768,0.000228,7]
[363790185,1748872254573,-254.859768,0.000228,7]
[363790186,1748872254583,-925.043668,0.000228,7]
[363790187,1748872254593,-925.043668,0.000228,7]
[363790188,1748872254603,-151.0,0.000228,7]
[363790189,1748872254613,-222.742843,0.000228,7]
[363790190,1748872254623,-151.0,0.000228,7]
[363790191,1748872254632,-151.0,0.000228,7]
[363790192,1748872254642,-151.0,0.000228,7]
[363790193,1748872254651,-151.0,0.000228,7]
[363790194,1748872254660,-151.0,0.000228,7]
[363790195,1748872254669,-151.0,0.000228,7]
[363790196,1748872254679,-191.505198,0.000228,7]
[363790197,1748872254688,-153.28226,0.000228,7]
[363790198,1748872254698,-191.505198,0.000228,7]
[363790199,1748872254707,-153.28226,0.000228,7]
[363790200,1748872254717,-151.0,0.000228,7]
[363790201,1748872254726,-151.0,0.000228,7]
[363790202,1748872254736,-2439.740422,0.000228,2]
[363790203,1748872254745,-2439.740422,0.000228,2]
[363790204,1748872254755,-194.84149,0.000228,7]
[363790205,1748872254765,-194.84149,0.000228,7]
[363790206,1748872254777,-151.0,0.000228,7]
[363790207,1748872254787,-151.0,0.000228,7]
[363790208,1748872254796,-240.295316,0.000228,7]
[363790209,1748872254806,-240.295316,0.000228,7]
[363790210,1748872254816,-151.0,0.000228,7]
[363790211,1748872254825,-445.297022,0.000228,7]
[363790212,1748872254836,-445.297022,0.000228,7]
[363790213,1748872254845,-151.0,0.000228,7]
[363790214,1748872254855,-151.0,0.000228,7]
[363790215,1748872254866,-260.454077,0.000228,7]
[363790216,1748872254877,-152.264403,0.000228,7]
[363790217,1748872254887,-260.454077,0.000228,7]
[363790218,1748872254897,-152.264403,0.000228,7]
[363790219,1748872254907,-263.034315,0.000228,7]
[363790220,1748872254917,-156.16805,0.000228,7]
[363790221,1748872254927,-263.034315,0.000228,7]
[363790222,1748872254937,-419.159235,0.000228,7]
[363790223,1748872254947,-419.159235,0.000228,7]
[363790224,1748872254956,-151.0,0.000228,7]
[363790225,1748872254967,-306.757923,0.000228,7]
[363790226,1748872254977,-306.757923,0.000228,7]
[363790227,1748872254987,-151.0,0.000228,7]
[363790228,1748872254998,-7519.12824661,0.00022826,2]
[363790229,1748872255008,-5000.0,0.00022826,2]
[363790230,1748872255022,-5000.0,0.00022826,2]
[363790231,1748872255033,-5000.0,0.00022826,2]
[363790232,1748872255043,-5000.0,0.00022826,2]
[363790233,1748872255135,-1058.48952415,0.00022869,2]
[363790234,1748872255145,-546.03875472,0.00022869,2]
[363790235,1748872255155,-510.37188177,0.00022869,2]
[363790236,1748872255165,-575.93763931,0.00022869,2]
[363790237,1748872255175,-1011.81688265,0.00022869,2]
[363790238,1748872255185,-656.224875,0.00022871,2]
[363790239,1748872255195,-691.20369727,0.00022871,2]
[363790240,1748872255206,-550.19,0.00022871,2]
[363790241,1748872255216,-1420.25922588,0.00022871,2]
[363790242,1748872255226,-845.22940822,0.00022871,2]
[363790243,1748872255236,-66571.03,0.000229,2]
[363790244,1748872255246,-2000.0,0.000229,2]
[363790245,1748872255256,-151.0,0.000229,7]
[363790246,1748872255267,-239.023645,0.000229,7]
[363790247,1748872255280,-214.255138,0.000229,7]
[363790248,1748872255290,-214.255138,0.000229,7]
[363790249,1748872255300,-254.859768,0.000229,7]
[363790250,1748872255310,-254.859768,0.000229,7]
[363790251,1748872255320,-151.0,0.000229,7]
[363790252,1748872255331,-151.0,0.000229,7]
[363790253,1748872255341,-151.0,0.000229,7]
[363790254,1748872255354,-260.015934,0.000229,7]
[363790255,1748872255365,-852.929751,0.000229,7]
[363790256,1748872255375,-852.929751,0.000229,7]
[363790257,1748872255385,-151.0,0.000229,7]
[363790258,1748872255394,-151.0,0.000229,7]
[363790259,1748872255404,-151.0,0.000229,7]
[363790260,1748872255414,-151.0,0.000229,7]
[363790261,1748872255424,-383.707035,0.000229,7]
[363790262,1748872255435,-383.707035,0.000229,7]
[363790263,1748872255446,-3954.07565849,0.00022933,2]
[363790264,1748872255456,-1814.36071417,0.00022934,8]
[363790265,1748872255467,-2000.0,0.00022935,2]
[363790266,1748872255477,-2000.0,0.00022935,2]
[363790267,1748872255487,-2400.0,0.00022935,2]
[363790268,1748872255496,-2000.0,0.00022935,2]
[363790269,1748872255506,-2000.0,0.00022935,2]
[363790270,1748872255516,-728.6285684,0.00022984,2]
[363790271,1748872255528,-155.01,0.0002299,30]
[363790272,1748872255538,-200548.15752227,0.00023,20]
[363790273,1748872255548,-16554.57218705,0.00023,20]
[363790274,1748872255779,-247.364,0.00020724,2]
[363790275,1748872255789,-30.01975,0.00023,20]
[363790276,1748872255801,-1701.27645483,0.00023,20]
[363790281,1748872470499,500.0,0.00022,120]
[363790282,1748872471442,500.0,0.00022,120]
[363790283,1748872472041,500.0,0.00022,120]
[363790284,1748872472822,500.0,0.00022,120]
[363790285,1748872473805,500.0,0.00022,120]
[363790286,1748872474596,500.0,0.00022,120]
[363790287,1748872475396,500.0,0.00022,120]
[363790288,1748872476239,500.0,0.00022,120]
[363790289,1748872476996,500.0,0.00022,120]
[363790290,1748872477825,500.0,0.00022,120]
[363790291,1748872478635,500.0,0.00022,120]
[363790292,1748872479456,500.0,0.00022,120]
[363790293,1748872480562,500.0,0.00022,120]
[363790294,1748872481355,500.0,0.00022,120]
[363790295,1748872482160,500.0,0.00022,120]
[363790296,1748872482942,500.0,0.00022,120]
[363790297,1748872483728,500.0,0.00022,120]
[363790298,1748872484503,500.0,0.00022,120]
[363790299,1748872485327,500.0,0.00022,120]
[363790300,1748872486100,500.0,0.00022,120]
[363790301,1748872486975,500.0,0.00022,120]
[363790302,1748872487744,500.0,0.00022,120]
[363790303,1748872488518,500.0,0.00022,120]
[363790304,1748872489320,500.0,0.00022,120]
[363790305,1748872490571,500.0,0.00022,120]
[363790306,1748872520762,250.0,0.00023,120]
[363790307,1748872526646,237.0,0.00024649,120]
[363790308,1748872557371,500.0,0.00022,120]
[363790309,1748872558178,500.0,0.00022,120]
[363790310,1748872558985,500.0,0.00022,120]
[363790311,1748872559750,500.0,0.00022,120]
[363790312,1748872560531,500.0,0.00022,120]
[363790313,1748872561299,500.0,0.00022,120]
[363790314,1748872562208,155.47,0.00022,120]
[363790316,1748872601699,288.970129,0.00013699,2]
[363790320,1748872763723,1601.15269,0.00024658,120]
[363790324,1748872863371,151.0,0.00013699,2]
[363790325,1748872866118,155.95279599,0.00013699,2]
[363790332,1748872927932,2797.27,0.00024,120]
[363790335,1748873009293,5000.0,0.00016,2]
[363790336,1748873029108,288.682365,0.00015561,2]
[363790338,1748873040406,213.38004807,6.8e-07,2]
[363790339,1748873041775,213.38004807,6.8e-07,2]
[363790346,1748873214767,1517.86726701,0.00016,2]
[363790347,1748873225927,150.0,0.0001552,2]
[363790348,1748873249863,9302.51360206,0.00024657,120]
[363790349,1748873286653,-3482.13273299,0.00016,2]
[363790351,1748873302188,1285.90759252,0.00016,2]
[363790352,1748873342586,180.26449727,6.8e-07,2]
[363790353,1748873342740,180.26449727,6.8e-07,2]
[363790354,1748873347842,1882.58967995,0.00016,2]
[363790355,1748873347865,1778.08439673,0.00016,2]
[363791262,1748873398372,151.0,0.00016,2]
[363791263,1748873398975,220.61369173,0.00016,2]
[363791264,1748873399618,165.46026879,0.00016,2]
[363791265,1748873400492,151.0,0.00016,2]
[363791266,1748873401267,151.0,0.00016,2]
[363791267,1748873402070,194.3808064,0.00016,2]
[363791270,1748873407008,3262.69291508,0.00016,2]
[363791312,1748873432811,-161.91943215,0.00016065,2]
[363791313,1748873432821,-706.24687111,0.00016465,2]
[363791314,1748873432831,-439.88,0.00016555,3]
[363791315,1748873432841,-300.0,0.00016559,2]
[363791316,1748873432851,-300.0,0.00016559,2]
[363791317,1748873432861,-300.0,0.00016559,2]
[363791318,1748873432871,-1200.0,0.00016559,2]
[363791319,1748873432881,-513.50306763,0.0001656,2]
[363791320,1748873432891,-430.0,0.0001656,2]
[363791321,1748873432901,-503.88638828,0.0001656,2]
[363791322,1748873432910,-433.11599565,0.0001656,2]
[363791323,1748873432920,-430.0,0.0001656,2]
[363791324,1748873432931,-430.0,0.0001656,2]
[363791325,1748873432941,-419.06282495,0.0001656,2]
[363791326,1748873432951,-430.0,0.0001656,2]
[363791327,1748873432961,-430.0,0.0001656,2]
[363791328,1748873432970,-449.35205607,0.0001656,2]
[363791329,1748873432980,-430.0,0.0001656,2]
[363791330,1748873432995,-430.0,0.0001656,2]
[363791331,1748873433005,-161.18398629,0.0001656,2]
[363791332,1748873433015,-792.0271392,0.0001656,2]
[363791333,1748873433025,-792.0271392,0.0001656,2]
[363791334,1748873433036,-792.0271392,0.0001656,2]
[363791335,1748873433045,-792.0271392,0.0001656,2]
[363791336,1748873433055,-303.14437774,0.0001656,2]
[363791337,1748873433066,-792.0271392,0.0001656,2]
[363791338,1748873433077,-792.0271392,0.0001656,2]
[363791339,1748873433088,-792.0271392,0.0001656,2]
[363791340,1748873433099,-792.0271392,0.0001656,2]
[363791341,1748873433114,-792.0271392,0.0001656,2]
[363791342,1748873433125,-792.0271392,0.0001656,2]
[363791343,1748873433135,-792.0271392,0.0001656,2]
[363791344,1748873433146,-172.10411909,0.0001656,2]
[363791345,1748873433156,-792.0271392,0.0001656,2]
[363791346,1748873433167,-792.0271392,0.0001656,2]
[363791347,1748873433179,-792.0271392,0.0001656,2]
[363791348,1748873433189,-792.0271392,0.0001656,2]
[363791349,1748873433200,-792.0271392,0.0001656,2]
[363791350,1748873433211,-792.0271392,0.0001656,2]
[363791351,1748873433222,-792.0271392,0.0001656,2]
[363791352,1748873433244,-792.0271392,0.0001656,2]
[363791353,1748873433262,-792.0271392,0.0001656,2]
[363791354,1748873433277,-792.0271392,0.0001656,2]
[363791355,1748873433291,-792.0271392,0.0001656,2]
[363791356,1748873433309,-792.0271392,0.0001656,2]
[363791357,1748873433325,-792.0271392,0.0001656,2]
[363791358,1748873433340,-792.0271392,0.0001656,2]
[363791359,1748873433358,-792.0271392,0.0001656,2]
[363791360,1748873433375,-792.0271392,0.0001656,2]
[363791361,1748873433390,-792.0271392,0.0001656,2]
[363791362,1748873433405,-792.0271392,0.0001656,2]
[363791363,1748873433422,-792.0271392,0.0001656,2]
[363791364,1748873433437,-792.0271392,0.0001656,2]
[363791365,1748873433454,-792.0271392,0.0001656,2]
[363791366,1748873433468,-792.0271392,0.0001656,2]
[363791367,1748873433483,-792.0271392,0.0001656,2]
[363791368,1748873433497,-792.0271392,0.0001656,2]
[363791369,1748873433510,-792.0271392,0.0001656,2]
[363791370,1748873433524,-792.0271392,0.0001656,2]
[363791371,1748873433538,-792.0271392,0.0001656,2]
[363791372,1748873433554,-792.0271392,0.0001656,2]
[363791373,1748873433569,-792.0271392,0.0001656,2]
[363791374,1748873433585,-792.0271392,0.0001656,2]
[363791375,1748873433601,-792.0271392,0.0001656,2]
[363791376,1748873433612,-792.0271392,0.0001656,2]
[363791377,1748873433623,-500.0,0.0001656,2]
[363791378,1748873433637,-428.56114188,0.0001656,2]
[363791379,1748873433652,-500.0,0.0001656,2]
[363791380,1748873433669,-275.18966371,0.0001656,2]
[363791381,1748873433681,-500.0,0.0001656,2]
[363791382,1748873433693,-500.0,0.0001656,2]
[363791383,1748873433707,-893.56168718,0.0001656,2]
[363791384,1748873433724,-893.56168718,0.0001656,2]
[363791385,1748873433738,-893.56168718,0.0001656,2]
[363791386,1748873433751,-893.56168718,0.0001656,2]
[363791387,1748873433765,-893.56168718,0.0001656,2]
[363791388,1748873433781,-893.56168718,0.0001656,2]
[363791389,1748873433798,-893.56168718,0.0001656,2]
[363791390,1748873433811,-893.56168718,0.0001656,2]